fUSD/lending_fUSD_20250629
["ID","MTS","AMOUNT","RATE_DAILY","PERIOD"]
[368391854,1751155888791,-490.0,0.0003041,9]
[368391855,1751155888801,-490.0,0.0003041,9]
[368391856,1751155888811,-490.0,0.0003041,9]
[368391857,1751155888821,-1718.76,0.0003041,9]
[368391858,1751155888831,-608.12,0.0003041,9]
[368391859,1751155888840,-490.0,0.0003041,9]
[368391860,1751155888850,-32.40291715,0.0003041,9]
[368391861,1751155888891,-1381.19708285,0.0003041,9]
[368391862,1751155888902,-490.0,0.0003041,9]
[368391863,1751155888911,-490.0,0.0003041,9]
[368391864,1751155888922,-1722.42,0.0003041,9]
[368391865,1751155888931,-448.05689669,0.0003041,9]
[368391866,1751155888944,-618.52310331,0.0003041,9]
[368391867,1751155888954,-154.43362695,0.0003041,9]
[368391868,1751155888967,-323.74275,0.0003041,9]
[368391869,1751155888979,-11.82362305,0.0003041,9]
[368391870,1751155888988,-485.7473979,0.0003041,9]
[368391871,1751155889002,-751.3426021,0.0003041,9]
[368391872,1751155889012,-1664.85,0.0003041,9]
[368391873,1751155889023,-920.08,0.0003041,9]
[368391874,1751155889033,-490.0,0.0003041,9]
[368391875,1751155889043,-490.0,0.0003041,9]
[368391876,1751155889053,-1947.57,0.0003041,9]
[368391877,1751155889063,-561.46,0.0003041,9]
[368391878,1751155889073,-490.0,0.0003041,9]
[368391879,1751155889083,-490.0,0.0003041,9]
[368391880,1751155889093,-490.0,0.0003041,9]
[368391881,1751155889103,-1369.16,0.0003041,9]
[368391882,1751155889113,-1602.25,0.0003041,9]
[368391883,1751155889123,-490.0,0.0003041,9]
[368391884,1751155889132,-570.55,0.0003041,9]
[368391885,1751155889143,-490.0,0.0003041,9]
[368391886,1751155889152,-693.72669548,0.0003041,9]
[368391887,1751155889295,-551.58,0.00030136,9]
[368391888,1751155889306,-490.0,0.00030136,9]
[368391889,1751155889317,-1754.57330452,0.0003041,9]
[368391890,1751155889328,-490.0,0.0003041,9]
[368391891,1751155889338,-490.0,0.0003041,9]
[368391892,1751155889348,-490.0,0.0003041,9]
[368391893,1751155889360,-490.0,0.0003041,9]
[368391894,1751155889370,-490.0,0.0003041,9]
[368391895,1751155889380,-575.96,0.0003041,9]
[368391896,1751155889390,-490.0,0.0003041,9]
[368391897,1751155889399,-490.0,0.0003041,9]
[368391898,1751155889409,-490.0,0.0003041,9]
[368391899,1751155889419,-490.0,0.0003041,9]
[368391900,1751155889429,-622.11,0.0003041,9]
[368391901,1751155889439,-1343.47,0.0003041,9]
[368391902,1751155889449,-490.0,0.0003041,9]
[368391903,1751155889458,-490.0,0.0003041,9]
[368391904,1751155889468,-490.0,0.0003041,9]
[368391905,1751155889478,-1182.31,0.0003041,9]
[368391906,1751155889490,-1183.21,0.0003041,9]
[368391907,1751155889500,-490.0,0.0003041,9]
[368391908,1751155889510,-490.0,0.0003041,9]
[368391909,1751155889520,-1328.82,0.0003041,9]
[368391910,1751155889530,-490.0,0.0003041,9]
[368391911,1751155889541,-1780.45,0.0003041,9]
[368391912,1751155889551,-490.0,0.0003041,9]
[368391913,1751155889560,-490.0,0.0003041,9]
[368391914,1751155889570,-490.0,0.0003041,9]
[368391915,1751155889580,-490.0,0.0003041,9]
[368391916,1751155889591,-490.0,0.0003041,9]
[368391917,1751155889600,-494.33,0.0003041,9]
[368391918,1751155889610,-490.0,0.0003041,9]
[368391919,1751155889620,-490.0,0.0003041,9]
[368391920,1751155889629,-490.0,0.0003041,9]
[368391921,1751155889639,-490.0,0.0003041,9]
[368391922,1751155889649,-1966.95,0.0003041,9]
[368391923,1751155889658,-490.0,0.0003041,9]
[368391924,1751155889668,-490.0,0.0003041,9]
[368391925,1751155889678,-1562.35,0.0003041,9]
[368391926,1751155889688,-787.42,0.0003041,9]
[368391927,1751155889698,-2982.43,0.0003041,9]
[368391928,1751155889707,-2646.23,0.0003041,9]
[368391929,1751155889717,-490.0,0.0003041,9]
[368391930,1751155889727,-490.0,0.0003041,9]
[368391931,1751155889741,-490.0,0.0003041,9]
[368391932,1751155889751,-490.0,0.0003041,9]
[368391933,1751155889761,-490.0,0.0003041,9]
[368391934,1751155889771,-1805.11,0.0003041,9]
[368391935,1751155889781,-490.0,0.0003041,9]
[368391936,1751155889791,-490.0,0.0003041,9]
[368391937,1751155889802,-490.0,0.0003041,9]
[368391938,1751155889812,-490.0,0.0003041,9]
[368391939,1751155889824,-892.81,0.0003041,9]
[368391940,1751155889834,-490.0,0.0003041,9]
[368391941,1751155889844,-490.0,0.0003041,9]
[368391942,1751155889854,-1706.84,0.0003041,9]
[368391943,1751155889865,-771.8,0.0003041,9]
[368391944,1751155889875,-490.0,0.0003041,9]
[368391945,1751155889884,-494.95013335,0.0003041,9]
[368391946,1751155889895,-500.0,0.0003041,9]
[368391947,1751155889905,-287.78105329,0.0003041,9]
[368391948,1751155889915,-2066.73,0.0003041,9]
[368391949,1751155889925,-490.0,0.0003041,9]
[368391950,1751155889935,-490.0,0.0003041,9]
[368391951,1751155889945,-490.0,0.0003041,9]
[368391952,1751155889955,-1220.93,0.0003041,9]
[368391953,1751155889966,-490.0,0.0003041,9]
[368391954,1751155889977,-609.65,0.0003041,9]
[368391955,1751155889987,-730.08,0.0003041,9]
[368391956,1751155889996,-2811.27,0.0003041,9]
[368391957,1751155890006,-490.0,0.0003041,9]
[368391958,1751155890016,-490.0,0.0003041,9]
[368391959,1751155890027,-490.0,0.0003041,9]
[368391960,1751155890037,-490.0,0.0003041,9]
[368391961,1751155890046,-490.0,0.0003041,9]
[368391962,1751155890056,-490.0,0.0003041,9]
[368391963,1751155890066,-490.0,0.0003041,9]
[368391964,1751155890076,-490.0,0.0003041,9]
[368391965,1751155890087,-490.0,0.0003041,9]
[368391966,1751155890097,-2413.91,0.0003041,9]
[368391967,1751155890107,-490.0,0.0003041,9]
[368391968,1751155890117,-1344.38,0.0003041,9]
[368391969,1751155890128,-495.7827149,0.0003041,9]
[368391970,1751155890138,-490.0,0.0003041,9]
[368391971,1751155890149,-490.0,0.0003041,9]
[368391972,1751155890160,-490.0,0.0003041,9]
[368391973,1751155890170,-490.0,0.0003041,9]
[368391974,1751155890180,-543.033394,0.0003041,7]
[368391975,1751155890190,-490.0,0.0003041,9]
[368391976,1751155890200,-490.0,0.0003041,9]
[368391977,1751155890210,-526.86,0.0003041,9]
[368391978,1751155890220,-490.0,0.0003041,9]
[368391979,1751155890230,-1374.01,0.0003041,9]
[368391980,1751155890240,-549.7,0.0003041,9]
[368391981,1751155890251,-1599.44,0.0003041,9]
[368391982,1751155890260,-490.0,0.0003041,9]
[368391983,1751155890271,-644.66,0.0003041,9]
[368391984,1751155890556,-490.0,0.0003041,9]
[368391985,1751155890575,-2187.29,0.0003041,9]
[368391986,1751155890603,-543.0334,0.0003041,7]
[368391987,1751155890613,-490.0,0.0003041,9]
[368391988,1751155890622,-490.0,0.0003041,9]
[368391989,1751155890632,-2199.83,0.0003041,9]
[368391990,1751155890641,-1937.84,0.0003041,9]
[368391991,1751155890651,-2740.05,0.0003041,9]
[368391992,1751155890660,-490.0,0.0003041,9]
[368391993,1751155890669,-858.89,0.0003041,9]
[368391994,1751155890678,-490.0,0.0003041,9]
[368391995,1751155890687,-490.0,0.0003041,9]
[368391996,1751155890697,-490.0,0.0003041,9]
[368391997,1751155890707,-490.0,0.0003041,9]
[368391998,1751155890717,-490.0,0.0003041,9]
[368391999,1751155890727,-1417.01,0.0003041,9]
[368392000,1751155890740,-490.0,0.0003041,9]
[368392001,1751155890750,-490.0,0.0003041,9]
[368392002,1751155890759,-1469.9,0.0003041,9]
[368392003,1751155890768,-1286.25,0.0003041,9]
[368392004,1751155890779,-2815.57,0.0003041,9]
[368392005,1751155890788,-490.0,0.0003041,9]
[368392006,1751155890801,-588.0,0.0003041,9]
[368392007,1751155890814,-1333.21,0.0003041,9]
[368392008,1751155890825,-1606.44,0.0003041,9]
[368392009,1751155890836,-785.93,0.0003041,9]
[368392010,1751155890846,-490.0,0.0003041,9]
[368392011,1751155890856,-490.0,0.0003041,9]
[368392012,1751155890866,-327.20505209,0.0003041,9]
[368392013,1751155890876,-490.0,0.0003041,9]
[368392014,1751155890886,-534.06,0.0003041,9]
[368392015,1751155890897,-490.0,0.0003041,9]
[368392016,1751155890907,-1505.15,0.0003041,9]
[368392017,1751155890916,-490.0,0.0003041,9]
[368392018,1751155890926,-817.99,0.0003041,9]
[368392019,1751155890935,-490.0,0.0003041,9]
[368392020,1751155890944,-634.71,0.0003041,9]
[368392021,1751155890954,-792.99,0.0003041,9]
[368392022,1751155890963,-977.13,0.0003041,9]
[368392023,1751155890973,-490.0,0.0003041,9]
[368392024,1751155890982,-490.0,0.0003041,9]
[368392025,1751155890991,-1271.63,0.0003041,9]
[368392026,1751155891001,-490.0,0.0003041,9]
[368392027,1751155891010,-521.8186175,0.0003041,9]
[368392028,1751155891019,-490.0,0.0003041,9]
[368392029,1751155891029,-490.0,0.0003041,9]
[368392030,1751155891039,-490.0,0.0003041,9]
[368392031,1751155891048,-490.0,0.0003041,9]
[368392032,1751155891058,-490.0,0.0003041,9]
[368392033,1751155891068,-490.0,0.0003041,9]
[368392034,1751155891078,-490.0,0.0003041,9]
[368392035,1751155891087,-587.28,0.0003041,9]
[368392036,1751155891098,-490.0,0.0003041,9]
[368392037,1751155891107,-490.0,0.0003041,9]
[368392038,1751155891116,-490.0,0.0003041,9]
[368392039,1751155891126,-490.0,0.0003041,9]
[368392040,1751155891136,-490.0,0.0003041,9]
[368392041,1751155891145,-588.05,0.0003041,9]
[368392042,1751155891154,-490.0,0.0003041,9]
[368392043,1751155891163,-490.0,0.0003041,9]
[368392044,1751155891173,-2308.5,0.0003041,9]
[368392045,1751155891183,-490.0,0.0003041,9]
[368392046,1751155891192,-490.0,0.0003041,9]
[368392047,1751155891200,-490.0,0.0003041,9]
[368392048,1751155891210,-490.0,0.0003041,9]
[368392049,1751155891220,-910.39,0.0003041,9]
[368392050,1751155891230,-490.0,0.0003041,9]
[368392051,1751155891240,-490.0,0.0003041,9]
[368392052,1751155891250,-492.1773483,0.0003041,9]
[368392053,1751155891259,-1549.92,0.0003041,9]
[368392054,1751155891268,-490.0,0.0003041,9]
[368392055,1751155891277,-490.0,0.0003041,9]
[368392056,1751155891286,-490.0,0.0003041,9]
[368392057,1751155891296,-1472.89,0.0003041,9]
[368392058,1751155891305,-490.0,0.0003041,9]
[368392059,1751155891314,-490.0,0.0003041,9]
[368392060,1751155891323,-1207.48,0.0003041,9]
[368392061,1751155891331,-490.0,0.0003041,9]
[368392062,1751155891340,-1428.86,0.0003041,9]
[368392063,1751155891350,-490.0,0.0003041,9]
[368392064,1751155891358,-490.0,0.0003041,9]
[368392065,1751155891367,-490.0,0.0003041,9]
[368392066,1751155891377,-490.0,0.0003041,9]
[368392067,1751155891390,-490.0,0.0003041,9]
[368392068,1751155891401,-490.0,0.0003041,9]
[368392069,1751155891412,-490.0,0.0003041,9]
[368392070,1751155891421,-490.0,0.0003041,9]
[368392071,1751155891430,-934.01,0.0003041,9]
[368392072,1751155891440,-490.0,0.0003041,9]
[368392073,1751155891450,-525.46,0.0003041,9]
[368392074,1751155891460,-490.0,0.0003041,9]
[368392075,1751155891470,-490.0,0.0003041,9]
[368392076,1751155891479,-490.0,0.0003041,9]
[368392077,1751155891489,-490.0,0.0003041,9]
[368392078,1751155891498,-490.0,0.0003041,9]
[368392079,1751155891507,-490.0,0.0003041,9]
[368392080,1751155891516,-490.0,0.0003041,9]
[368392081,1751155891526,-490.0,0.0003041,9]
[368392082,1751155891536,-490.0,0.0003041,9]
[368392083,1751155891545,-1662.56,0.0003041,9]
[368392084,1751155891554,-3554.55,0.0003041,9]
[368392085,1751155891564,-490.0,0.0003041,9]
[368392086,1751155891573,-490.0,0.0003041,9]
[368392087,1751155891583,-490.0,0.0003041,9]
[368392088,1751155891592,-552.54644892,0.0003041,9]
[368392089,1751155891602,-2000.87,0.0003041,9]
[368392090,1751155891611,-1290.28,0.0003041,9]
[368392091,1751155891620,-930.12,0.0003041,9]
[368392092,1751155891630,-490.0,0.0003041,9]
[368392093,1751155891638,-978.52,0.0003041,9]
[368392094,1751155891648,-362.83876657,0.0003041,9]
[368392095,1751155891657,-490.0,0.0003041,9]
[368392096,1751155891667,-490.0,0.0003041,9]
[368392097,1751155891676,-634.0,0.0003041,9]
[368392098,1751155891686,-258.31174759,0.0003041,9]
[368392099,1751155891695,-490.0,0.0003041,9]
[368392100,1751155891704,-490.0,0.0003041,9]
[368392101,1751155891714,-1778.99,0.0003041,9]
[368392102,1751155891723,-6620.51,0.0003041,9]
[368392103,1751155891735,-490.0,0.0003041,9]
[368392104,1751155891744,-724.73,0.0003041,9]
[368392105,1751155891753,-1353.53,0.0003041,9]
[368392106,1751155891762,-1360.77,0.0003041,9]
[368392107,1751155891772,-551.99,0.0003041,9]
[368392108,1751155891782,-490.0,0.0003041,9]
[368392109,1751155891796,-386.43826387,0.0003041,9]
[368392110,1751155891806,-1327.21,0.0003041,9]
[368392111,1751155891815,-498.9,0.0003041,9]
[368392112,1751155891825,-2395.44,0.0003041,9]
[368392113,1751155891834,-490.0,0.0003041,9]
[368392114,1751155891843,-971.42,0.0003041,9]
[368392115,1751155891853,-490.0,0.0003041,9]
[368392116,1751155891863,-490.0,0.0003041,9]
[368392117,1751155891872,-490.0,0.0003041,9]
[368392118,1751155891882,-490.0,0.0003041,9]
[368392119,1751155891891,-490.0,0.0003041,9]
[368392120,1751155891901,-490.0,0.0003041,9]
[368392121,1751155891911,-490.0,0.0003041,9]
[368392122,1751155891920,-1000.04,0.0003041,9]
[368392123,1751155891930,-490.0,0.0003041,9]
[368392124,1751155891939,-490.0,0.0003041,9]
[368392125,1751155891949,-490.0,0.0003041,9]
[368392126,1751155891959,-1307.5,0.0003041,9]
[368392127,1751155891969,-1205.05,0.0003041,9]
[368392128,1751155891980,-628.17380353,0.0003041,9]
[368392129,1751155891990,-490.0,0.0003041,9]
[368392130,1751155891999,-795.73,0.0003041,9]
[368392131,1751155892008,-490.0,0.0003041,9]
[368392132,1751155892018,-490.0,0.0003041,9]
[368392133,1751155892028,-215.37133238,0.0003041,9]
[368392134,1751155892038,-922.43799825,0.0003041,9]
[368392135,1751155892141,-580.15200175,0.0003041,9]
[368392136,1751155892152,-278.56799825,0.0003041,9]
[368392137,1751155893125,-162.516029,0.0003,7]
[368392138,1751155893135,-490.0,0.00030136,9]
[368392139,1751155893145,-211.43200175,0.0003041,9]
[368392140,1751155893154,-1282.85196925,0.0003041,9]
[368392141,1751155893401,-1388.93803075,0.0003041,9]
[368392142,1751155893411,-490.0,0.0003041,9]
[368392143,1751155893421,-490.0,0.0003041,9]
[368392144,1751155893430,-490.0,0.0003041,9]
[368392145,1751155893441,-490.0,0.0003041,9]
[368392146,1751155893451,-3047.79,0.0003041,9]
[368392147,1751155893461,-490.0,0.0003041,9]
[368392148,1751155893470,-304.28495239,0.0003041,9]
[368392149,1751155893480,-951.11,0.0003041,9]
[368392150,1751155893490,-490.0,0.0003041,9]
[368392151,1751155893499,-490.0,0.0003041,9]
[368392152,1751155893509,-490.0,0.0003041,9]
[368392153,1751155893518,-1643.6,0.0003041,9]
[368392154,1751155893528,-490.0,0.0003041,9]
[368392155,1751155893538,-490.0,0.0003041,9]
[368392156,1751155893547,-2045.98,0.0003041,9]
[368392157,1751155893557,-490.0,0.0003041,9]
[368392158,1751155893567,-490.0,0.0003041,9]
[368392159,1751155893576,-490.0,0.0003041,9]
[368392160,1751155893586,-490.0,0.0003041,9]
[368392161,1751155893595,-490.0,0.0003041,9]
[368392162,1751155893605,-490.0,0.0003041,9]
[368392163,1751155893614,-490.0,0.0003041,9]
[368392164,1751155893623,-490.0,0.0003041,9]
[368392165,1751155893632,-1294.12,0.0003041,9]
[368392166,1751155893641,-490.0,0.0003041,9]
[368392167,1751155893651,-1224.52,0.0003041,9]
[368392168,1751155893660,-1543.45,0.0003041,9]
[368392169,1751155893669,-490.0,0.0003041,9]
[368392170,1751155893679,-490.0,0.0003041,9]
[368392171,1751155893689,-490.0,0.0003041,9]
[368392172,1751155893698,-490.0,0.0003041,9]
[368392173,1751155893707,-490.0,0.0003041,9]
[368392174,1751155893717,-981.47,0.0003041,9]
[368392175,1751155893727,-1412.14,0.0003041,9]
[368392176,1751155893736,-490.0,0.0003041,9]
[368392177,1751155893746,-490.0,0.0003041,9]
[368392178,1751155893759,-490.0,0.0003041,9]
[368392179,1751155893769,-490.0,0.0003041,9]
[368392180,1751155893779,-490.0,0.0003041,9]
[368392181,1751155893788,-1585.77,0.0003041,9]
[368392182,1751155893798,-490.0,0.0003041,9]
[368392183,1751155893807,-618.11,0.0003041,9]
[368392184,1751155893817,-490.0,0.0003041,9]
[368392185,1751155893826,-490.0,0.0003041,9]
[368392186,1751155893836,-490.78,0.0003041,9]
[368392187,1751155893845,-490.0,0.0003041,9]
[368392188,1751155893855,-490.0,0.0003041,9]
[368392189,1751155893865,-490.0,0.0003041,9]
[368392190,1751155893874,-490.0,0.0003041,9]
[368392191,1751155893884,-2769.83,0.0003041,9]
[368392192,1751155893894,-490.0,0.0003041,9]
[368392193,1751155893904,-293.63261091,0.0003041,9]
[368392194,1751155893913,-490.0,0.0003041,9]
[368392195,1751155893923,-490.0,0.0003041,9]
[368392196,1751155893932,-490.0,0.0003041,9]
[368392197,1751155893942,-490.0,0.0003041,9]
[368392198,1751155893952,-490.0,0.0003041,9]
[368392199,1751155893962,-1833.76,0.0003041,9]
[368392200,1751155893972,-490.0,0.0003041,9]
[368392201,1751155893982,-900.42,0.0003041,9]
[368392202,1751155893991,-490.0,0.0003041,9]
[368392203,1751155894001,-490.0,0.0003041,9]
[368392204,1751155894011,-490.0,0.0003041,9]
[368392205,1751155894022,-490.0,0.0003041,9]
[368392206,1751155894032,-1319.25,0.0003041,9]
[368392207,1751155894043,-492.29,0.0003041,9]
[368392208,1751155894052,-490.0,0.0003041,9]
[368392209,1751155894062,-490.0,0.0003041,9]
[368392210,1751155894073,-674.99,0.0003041,9]
[368392211,1751155894082,-490.0,0.0003041,9]
[368392212,1751155894092,-1136.23,0.0003041,9]
[368392213,1751155894102,-490.0,0.0003041,9]
[368392214,1751155894111,-495.68,0.0003041,9]
[368392215,1751155894121,-490.0,0.0003041,9]
[368392216,1751155894130,-490.0,0.0003041,9]
[368392217,1751155894140,-490.0,0.0003041,9]
[368392218,1751155894149,-7105.69,0.0003041,9]
[368392219,1751155894159,-1412.93,0.0003041,9]
[368392220,1751155894169,-490.0,0.0003041,9]
[368392221,1751155894178,-3248.96,0.0003041,9]
[368392222,1751155894187,-490.0,0.0003041,9]
[368392223,1751155894196,-1441.03,0.0003041,9]
[368392224,1751155894205,-490.0,0.0003041,9]
[368392225,1751155894214,-490.0,0.0003041,9]
[368392226,1751155894223,-490.0,0.0003041,9]
[368392227,1751155894232,-490.0,0.0003041,9]
[368392228,1751155894242,-490.0,0.0003041,9]
[368392229,1751155894251,-490.0,0.0003041,9]
[368392230,1751155894260,-490.0,0.0003041,9]
[368392231,1751155894269,-490.0,0.0003041,9]
[368392232,1751155894279,-90.24440759,0.0003041,9]
[368392233,1751155896144,-15.01971956,0.00027299,2]
[368392235,1751155987292,158.81,0.00013699,2]
[368392236,1751156292232,218.0,0.0001985,2]
[368392237,1751156292319,218.0,0.00026542,11]
[368392238,1751156556202,750.0,0.00027397,120]
[368392239,1751156696176,250.0,0.00015,2]
[368392240,1751156755628,4286.3626471,0.00015,10]
[368392245,1751156830039,1373.19,0.00016435,2]
[368392246,1751156830063,3715.64931289,0.00016435,2]
[368392247,1751156879622,1125.58685032,0.00015,10]
[368392256,1751157001073,200.78,0.0002739,120]
[368392263,1751157031554,-255.48488709,0.00020187,2]
[368392264,1751157031564,-158.81,0.00020187,2]
[368392265,1751157031573,-192.12497409,0.000213,2]
[368392266,1751157031583,-1200.0,0.00021799,2]
[368392267,1751157031592,-300.0,0.00021799,2]
[368392268,1751157031602,-300.0,0.00021799,2]
[368392269,1751157031611,-25112.74176803,0.000218,2]
[368392270,1751157031620,-15060.10886484,0.00022,2]
[368392271,1751157031630,-251.01345579,0.00022,2]
[368392273,1751157031645,-1204.70020667,0.00022,2]
[368392274,1751157031736,-4336.47037263,0.00022,2]
[368392275,1751157031758,-718.30226286,0.00022,2]
[368392276,1751157031786,-268.61,0.00022,2]
[368392277,1751157031827,-599.51513865,0.00022,2]
[368392278,1751157031838,-269.652,0.00022,2]
[368392279,1751157031885,-1204.16977347,0.00022,2]
[368392280,1751157031896,-1737.77917071,0.00022,2]
[368392281,1751157031906,-250.0,0.00022206,2]
[368392282,1751157031916,-250.0,0.00022206,2]
[368392283,1751157031925,-250.0,0.00022206,2]
[368392284,1751157031935,-6969.0,0.000226,2]
[368392285,1751157031944,-3.4809279,0.000231,3]
[368392286,1751157031960,-5504.5190721,0.000231,3]
[368392287,1751157031970,-338.0,0.00023693,2]
[368392288,1751157031980,-5508.0,0.000237,5]
[368392289,1751157031989,-613.25552057,0.00023805,2]
[368392290,1751157032001,-1066.74447943,0.00023805,2]
[368392291,1751157032010,-3.11484434,0.00024,5]
[368392461,1751157037810,-4996.88515566,0.00024,5]
[368392462,1751157037819,-116.69971015,0.00024102,3]
[368392463,1751157037839,-58.30028985,0.00024102,3]
[368392464,1751157037848,-2869.60044345,0.000255,2]
[368392465,1751157037859,-1193.90317689,0.000255,2]
[368392466,1751157037871,-767.3622411,0.000255,2]
[368392467,1751157037882,-342.55414175,0.000255,2]
[368392478,1751157038070,-571.42212123,0.000255,2]
[368392483,1751157038118,-790.11199992,0.000255,2]
[368392490,1751157038194,-448.9476935,0.000255,2]
[368392628,1751157039689,-4297.234,0.000255,2]
[368392635,1751157039759,-317.74616025,0.000255,2]
[368392638,1751157039773,-6602.91807719,0.000255,2]
[368392639,1751157039783,-158.81,0.00026676,2]
[368392641,1751157039792,-168.0,0.00027289,7]
[368392643,1751157039801,-168.0,0.00027539,2]
[368392645,1751157039810,-200.0,0.0002767,2]
[368392647,1751157039819,-280.0,0.00028158,15]
[368392649,1751157039828,-6165.24,0.00028391,2]
[368392651,1751157039837,-272.11,0.00028395,120]
[368392653,1751157039846,-522.28876937,0.00028459,2]
[368392659,1751157039907,-143.71123063,0.00028459,2]
[368392661,1751157039916,-207.4,0.00028527,2]
[368392663,1751157039926,-1000.0,0.00028545,2]
[368392665,1751157039935,-163.92,0.00028563,2]
[368392667,1751157039944,-250.0,0.00028591,2]
[368392669,1751157039953,-464.14,0.00028664,2]
[368392671,1751157039962,-152.78,0.0002873,2]
[368392673,1751157039972,-2267.21453755,0.00028968,2]
[368392675,1751157039985,-19005.00225717,0.00028968,2]
[368392678,1751157040008,-300.87149143,0.00028968,2]
[368392836,1751157041917,301.09,0.0002739,120]
[368392923,1751157042702,-1538.49185355,0.00028968,2]
[368392925,1751157042714,-60108.5057603,0.00028968,2]
[368392927,1751157042723,-3913.93541051,0.00029084,2]
[368392929,1751157042733,-168.0,0.00029184,2]
[368392931,1751157042742,-1500.0,0.00029195,120]
[368392933,1751157042752,-13044.5065403,0.000292,2]
[368392935,1751157042762,-3913.93541043,0.00029251,2]
[368392937,1751157042772,-166.81,0.00029275,2]
[368392939,1751157042781,-3913.93541043,0.00029417,2]
[368392941,1751157042790,-188.332378,0.00029497,8]
[368392943,1751157042799,-3913.93541043,0.00029584,2]
[368392945,1751157042809,-586.28385609,0.0002964,19]
[368392947,1751157042818,-2494.0601,0.00029658,2]
[368392949,1751157042829,-1678.0,0.00029701,2]
[368392951,1751157042838,-1280.0,0.00029701,2]
[368392953,1751157042847,-559.0,0.00029701,2]
[368392955,1751157042856,-592.0,0.00029701,2]
[368392957,1751157042865,-930.0,0.00029701,2]
[368392959,1751157042874,-1162.0,0.00029701,2]
[368392961,1751157042883,-156.0,0.00029701,2]
[368392963,1751157042892,-3339.0,0.00029701,2]
[368392965,1751157042901,-948.0,0.00029701,2]
[368392967,1751157042911,-4102.0,0.00029701,2]
[368392969,1751157042920,-464.14,0.00029739,2]
[368392971,1751157042929,-311.1,0.0002974,2]
[368392973,1751157042938,-500.0,0.0002974,2]
[368392975,1751157042947,-500.0,0.0002974,2]
[368392977,1751157042957,-500.0,0.0002974,2]
[368392979,1751157042966,-500.0,0.0002974,2]
[368392981,1751157042975,-500.0,0.0002974,2]
[368392983,1751157042985,-500.0,0.0002974,2]
[368392985,1751157042994,-586.46940954,0.0002974,2]
[368392987,1751157043003,-500.0,0.0002974,2]
[368392989,1751157043013,-500.0,0.0002974,2]
[368392991,1751157043022,-500.0,0.0002974,2]
[368392994,1751157043032,-500.0,0.0002974,2]
[368392996,1751157043041,-500.0,0.0002974,2]
[368392998,1751157043050,-3913.93541043,0.00029751,2]
[368393000,1751157043060,-500.0,0.00029757,2]
[368393002,1751157043069,-500.0,0.00029757,2]
[368393004,1751157043079,-464.95926275,0.00029757,2]
[368393007,1751157043088,-500.0,0.00029758,2]
[368393011,1751157043097,-500.0,0.00029758,2]
[368393014,1751157043107,-500.0,0.00029758,2]
[368393016,1751157043117,-500.0,0.00029758,2]
[368393018,1751157043126,-500.0,0.00029758,2]
[368393020,1751157043135,-500.0,0.00029758,2]
[368393022,1751157043145,-500.0,0.00029758,2]
[368393024,1751157043154,-500.0,0.00029758,2]
[368393026,1751157043164,-500.0,0.00029758,2]